Cogmind - Beta 13 @@@ ROGUE MODE // 2024.04.04 @ 19:37:12 Player: Dosh Result: Destroyed by S-43 Plague with Heavy Machine Gun Performance ------------- Evolutions (6) 3000 Regions Visited (29) 5800 Robots Destroyed (381) 1905 Value Destroyed (14456) 14456 Prototype IDs (71) 1420 Alien Tech Used (2) 400 Bonus (6016) 6016 TOTAL SCORE: 32997 Bonus ------- High Alert Combat Kills 947 Follower Combat Kills 5019 Entered Garrisons 200 Aligned with FarCom 300 Met Data Miner 300 Met Zhirov 300 MAIN.C Attacked Warlord 500 Friendly Fire -1550 Cogmind --------- Core Integrity 0/1150 Matter 251/300 Energy 99/100 System Corruption 0% Temperature Cool (0) Movement Core (50) Location -3/Proximity Caves Parts ------- > --- POWER (2) -------- (None) > --- PROPULSION (4) --- (None) > --- UTILITY (9) ------ Advanced Sensor Array Experimental Utility Shielding Hacking Suite > --- WEAPON (4) ------- (None) > --- INVENTORY (5) ---- Hacking Drone Bay Dimensional Node Initializer Heavy Phase Cannon Peak State ------------ > --- POWER ------------ Cold Fusion Reactor Antimatter Reactor > --- PROPULSION ------- Armored Huge Wheel > --- UTILITY ---------- Cargo Storage Unit Improved Light Armor Plating Experimental Thermal Shield Improved System Shield Combat Drone Bay Combat Drone Bay > --- WEAPON ----------- Heavy Plasma Cannon KE Penetrator KE Penetrator Enhanced Coil Gun > --- INVENTORY -------- Reinforced Deuterium Engine Light Antimatter Reactor Wheel Advanced Cooling System Improved Energy Well Advanced Sensor Array 0b10 Alert Chip Core Analyzer Improved Transmission Jammer Remote Shield Remote Force Field Hacking Suite System Shield System Restoration Module Improved Trap Extractor Combat Drone Bay Combat Drone Bay Hacking Drone Bay Force Rifle Phase Cannon Heavy Plasma Cannon Heavy Plasma Cannon Compact Ion Cannon Heavy Phase Cannon KE Penetrator Scatter Rocket Array Micro-nuke Launcher [Rating: 108] Favorites ----------- Power Neutrino Core Engine Reinforced Deuterium Engine Power Core Neutrino Core Reactor Cold Fusion Reactor Propulsion Armored Huge Wheel Wheel Armored Huge Wheel Hover Unit Backup Propulsion III Utility Cargo Storage Unit Device Advanced Cooling System Storage Cargo Storage Unit Processor Advanced Targeting Computer Hackware Advanced System Shield Protection Hardened Heavy Armor Plating Weapon KE Penetrator Energy Gun Advanced Plasma Rifle Energy Cannon Heavy Plasma Cannon Ballistic Gun KE Penetrator Ballistic Cannon Hardcell Cannon Launcher Scatter Rocket Array Special Weapon RU-N14's Throwing Claymores Piercing Weapon Lance Special Melee Weapon Improved Datajack Build | -11 -10 -10 -9 -9 -9 -8 -8 -8 -8 -7 -7 -7 -7 -6 -6 -6 -6 -6 -5 -5 -5 -5 -5 -4 -4 -4 -4 -4 -3 ------- Run | Yrd Mat Min Mat Min Exi Min Mat Gar Mat Fac Low Low Dat Pro Fac Low Low Zio Pro Fac Upp Upp Zhi Pro Fac Upp Upp War Pro Slots Evolved 12 | . . . 2 . . . 2 . . 2 . . . . 2 . . . . 2 . . . . 2 . . . . Power 1 | . . . . . . . . . . . . . . . 1 . . . . . . . . . . . . . . Propulsion 2 | . . . . . . . . . . . . . . . . . . . . . . . . . 2 . . . . Utility 7 | . . . 1 . . . 2 . . 1 . . . . 1 . . . . 2 . . . . . . . . . Weapon 2 | . . . 1 . . . . . . 1 . . . . . . . . . . . . . . . . . . . Parts Attached 259 | 7 18 1 30 2 1 . 7 9 9 22 11 . . 10 24 4 . 5 9 17 8 3 8 . 26 3 20 3 2 Power 19 | 1 2 . 3 . . . 1 . . 1 1 . . . 2 . . 3 . . 1 1 . . 1 . 2 . . Engine 7 | 1 2 . 3 . . . . . . . . . . . 1 . . . . . . . . . . . . . . Core 7 | . . . . . . . 1 . . 1 1 . . . 1 . . 1 . . . 1 . . . . 1 . . Reactor 5 | . . . . . . . . . . . . . . . . . . 2 . . 1 . . . 1 . 1 . . Propulsion 34 | 2 8 . 9 . . . 1 1 1 . . . . 1 . . . . . 1 . . . . 6 1 3 . . Treads . | . . . . . . . . . . . . . . . . . . . . . . . . . . . . . . Leg . | . . . . . . . . . . . . . . . . . . . . . . . . . . . . . . Wheel 34 | 2 8 . 9 . . . 1 1 1 . . . . 1 . . . . . 1 . . . . 6 1 3 . . Hover . | . . . . . . . . . . . . . . . . . . . . . . . . . . . . . . Flight . | . . . . . . . . . . . . . . . . . . . . . . . . . . . . . . Utility 98 | 1 2 1 3 2 1 . 3 5 1 12 4 . . 3 13 1 . . 7 9 4 2 4 . 11 . 6 3 . Device 64 | . . . . 1 . . 2 3 . 8 3 . . 2 10 1 . . 7 7 4 2 3 . 7 . 3 1 . Storage 7 | 1 1 1 . . . . . . . 1 . . . . 1 . . . . . . . 1 . . . 1 . . Processor 5 | . 1 . . . . . . 1 . 1 . . . . . . . . . . . . . . 1 . 1 . . Hackware 5 | . . . . . . . . . . . . . . . 1 . . . . 1 . . . . 2 . . 1 . Protection 17 | . . . 3 1 1 . 1 1 1 2 1 . . 1 1 . . . . 1 . . . . 1 . 1 1 . Artifact . | . . . . . . . . . . . . . . . . . . . . . . . . . . . . . . Weapon 108 | 3 6 . 15 . . . 2 3 7 9 6 . . 6 9 3 . 2 2 7 3 . 4 . 8 2 9 . 2 Energy Gun 19 | 2 2 . 4 . . . . . . 4 . . . 2 5 . . . . . . . . . . . . . . Energy Cannon 29 | . . . 2 . . . 1 1 1 4 4 . . 3 4 1 . 1 . 1 1 . . . . . 4 . 1 Ballistic Gun 37 | 1 4 . 9 . . . . 1 4 . . . . . . 2 . . 1 5 2 . 4 . 4 . . . . Ballistic Cannon 5 | . . . . . . . . . . 1 . . . . . . . . . . . . . . 2 1 1 . . Launcher 15 | . . . . . . . 1 1 . . 2 . . 1 . . . . 1 1 . . . . 2 1 4 . 1 Special Weapon 1 | . . . . . . . . . . . . . . . . . . 1 . . . . . . . . . . . Impact Weapon . | . . . . . . . . . . . . . . . . . . . . . . . . . . . . . . Slashing Weapon . | . . . . . . . . . . . . . . . . . . . . . . . . . . . . . . Piercing Weapon 1 | . . . . . . . . . 1 . . . . . . . . . . . . . . . . . . . . Special Melee Weapon 1 | . . . . . . . . . 1 . . . . . . . . . . . . . . . . . . . . Unidentified Prototypes 18 | . . . 1 1 . . . . . 7 . . . 1 2 . . 1 1 1 . . 2 . . . . . 1 Corrupted Parts 1 | . . . . . . . . . . . . . . . . . . . . . . . . . . . 1 . . System Corruption 5 | . . . . . . . . . . . . . . . . . . . . . . . . . . . 5 . . Parts Lost 49 | . 2 . 6 . . . . . . 1 1 . . 5 2 . . . . 6 1 . . . 6 2 15 1 1 Power 8 | . 1 . 1 . . . . . . 1 . . . . . . . . . . 1 . . . . . 3 1 . Propulsion 14 | . 1 . 3 . . . . . . . . . . 1 . . . . . 1 . . . . 3 2 3 . . Utility 17 | . . . 1 . . . . . . . 1 . . 1 1 . . . . 5 . . . . 3 . 5 . . Weapon 10 | . . . 1 . . . . . . . . . . 3 1 . . . . . . . . . . . 4 . 1 Highest Loss Streak 8 | . 1 . 2 . . . . . . 1 1 . . 1 1 . . . . 2 1 . . . 2 1 8 1 1 To Critical Strikes 3 | . . . . . . . . . . . . . . 1 . . . . . . . . . . 1 1 . . . Average Slot Usage (%) 76 | . 93 100 88 88 88 88 83 80 80 83 76 84 84 83 83 68 73 73 73 71 80 82 60 82 80 74 62 48 15 Engine 2 | . 14 14 9 11 11 11 5 . . . . . . . 5 6 6 . . . . . . . . . . 2 . Core 4 | . . . . . . . 3 9 9 6 7 7 7 7 6 6 6 . . . . 4 5 5 5 5 4 4 . Reactor 3 | . . . . . . . . . . . . . . . . . . 12 13 11 10 5 5 5 5 5 2 . . Wheel 8 | . 26 28 21 22 22 22 11 9 8 7 7 7 7 6 6 6 6 6 6 4 5 5 5 5 13 6 2 . . Device 12 | . . . . . . . 17 16 9 13 9 15 15 15 11 13 13 13 13 14 27 29 28 29 15 15 13 9 5 Storage 6 | . 14 14 11 11 11 11 9 9 9 7 7 7 7 7 6 6 6 6 6 5 5 5 5 5 5 5 6 4 . Processor 3 | . 9 14 3 . . . . 1 9 8 7 7 7 7 5 . . . . . . . . . 2 5 8 9 . Hackware 2 | . . . . . . . . . . . . . . . 5 . . . . 4 5 5 5 5 9 5 5 4 5 Protection 5 | . . . 10 11 11 11 9 9 8 7 7 7 7 7 6 6 6 6 6 4 . . . . 1 5 2 . 5 Energy Gun 3 | . 12 . 5 . . . . . . 5 15 15 15 17 18 . . . . . . . . . . . . 4 . Energy Cannon 7 | . . . 5 11 11 11 8 8 9 9 12 15 15 11 7 17 13 12 13 7 1 . . . . . 12 . . Ballistic Gun 10 | . 14 28 21 22 22 22 18 17 17 9 . . . . . 4 13 13 13 14 21 23 2 23 16 10 . . . Naked Turns 11 | . . . . . . . . . . . . . . . . . . . . . . . . . . . . 11 . Heaviest Build 293 | 13 19 88 110 110 110 110 118 118 119 137 146 143 143 150 293 231 231 231 230 243 217 216 216 216 230 229 229 162 2 Greatest Support 48 | 20 32 20 32 24 24 24 28 28 28 28 28 28 28 28 28 28 28 28 28 28 28 28 28 28 48 38 28 16 3 Greatest Overweight (x) 66 | . 1 4 10 4 4 4 4 4 4 4 5 5 5 5 10 8 8 8 8 8 7 7 7 7 6 8 66 51 . Average Overweight (x) 5 | . . . 3 3 4 4 4 4 4 4 4 5 5 4 5 7 8 7 7 7 7 7 6 7 4 7 25 16 . Largest Inventory Capacity 30 | 8 10 25 25 25 25 25 25 25 25 25 25 25 25 25 30 30 30 30 30 30 30 30 30 30 30 30 30 30 5 Average Capacity 27 | 6 9 13 25 25 25 25 25 25 25 25 25 25 25 25 26 30 30 30 30 30 30 30 30 30 30 30 30 29 5 Most Carried 30 | 2 10 11 25 25 25 25 25 25 25 25 25 23 23 25 30 30 30 30 30 30 30 30 30 30 30 30 30 25 5 Average Carried 25 | . 5 10 20 24 24 24 24 24 24 24 23 23 23 22 25 29 30 29 29 27 28 29 28 29 29 28 22 24 3 Final Capacity 30 | 8 10 25 25 25 25 25 25 25 25 25 25 25 25 25 30 30 30 30 30 30 30 30 30 30 30 30 30 5 5 Final Carried 30 | 2 10 11 25 25 24 25 25 25 25 25 23 23 23 24 29 30 30 29 29 30 29 30 30 30 28 30 25 5 3 Class Distribution -------------------- 39% | Hauler-Tank 19% | Tank 10% | Hauler-Skirmisher 8% | Skirmisher 8% | Hauler-Mutant 4% | Pyromaniac-Gunner 3% | Mutant Dominant Class ---------------- Mutant | -10/Materials Mutant | -10/Mines Tank | -9/Materials Tank | -9/Mines Tank | -9/Exiles Skirmisher | -8/Mines Tank | -8/Materials Tank | -8/Garrison Tank | -8/Materials Tank | -7/Factory Pyromaniac-Gunner | -7/Lower Caves Pyromaniac-Gunner | -7/Lower Caves Pyromaniac-Gunner | -7/Data Miner Trapper-Gunner | -6/Proximity Caves Skirmisher | -6/Factory Hauler-Tank | -6/Lower Caves Hauler-Tank | -6/Lower Caves Hauler-Tank | -6/Zion Hauler-Tank | -5/Proximity Caves Hauler-Tank | -5/Factory Hauler-Tank | -5/Upper Caves Hauler-Tank | -5/Upper Caves Hauler-Mutant | -5/Zhirov Hauler-Tank | -4/Proximity Caves Hauler-Skirmisher | -4/Factory Hauler-Tank | -4/Upper Caves Hauler-Tank | -4/Upper Caves Hauler-Mutant | -4/Warlord Mutant | -3/Proximity Caves Resources | -11 -10 -10 -9 -9 -9 -8 -8 -8 -8 -7 -7 -7 -7 -6 -6 -6 -6 -6 -5 -5 -5 -5 -5 -4 -4 -4 -4 -4 -3 ----------- Run | Yrd Mat Min Mat Min Exi Min Mat Gar Mat Fac Low Low Dat Pro Fac Low Low Zio Pro Fac Upp Upp Zhi Pro Fac Upp Upp War Pro Matter Collected 8861 | 212 413 . 648 100 . 46 342 100 476 326 257 26 . 185 235 40 . 50 295 932 257 187 . 492 1671 485 791 295 . Remotely . | . . . . . . . . . . . . . . . . . . . . . . . . . . . . . . Salvage Created 15812 | . 724 . 1377 88 . 96 1022 115 1065 597 334 432 . 817 3369 . . . 531 2104 . 76 . 252 1162 467 1184 . . Parts 799 | . 36 . 110 7 . 11 63 25 54 34 5 14 . 32 153 . . . 33 90 . . . 5 62 14 51 . . Haulers Intercepted 17 | . 2 . 4 . . . 4 . 4 . . . . . 1 . . . . 1 . . . . 1 . . . . Recyclers Shooed 8 | . 2 . 2 . . . 1 . . . . . . . 1 . . . . 2 . . . . . . . . . Parts Field Recycled . | . . . . . . . . . . . . . . . . . . . . . . . . . . . . . . Retrieved Matter . | . . . . . . . . . . . . . . . . . . . . . . . . . . . . . . Parts Self-Destructed 304 | . . . . . . . . . . . 6 9 . 27 . 35 12 . 67 . 22 41 . 32 . 12 41 . . Prevented 8 | . . . . . . . . . . . . . . 3 . 3 . . . . . 2 . . . . . . . Kills | -11 -10 -10 -9 -9 -9 -8 -8 -8 -8 -7 -7 -7 -7 -6 -6 -6 -6 -6 -5 -5 -5 -5 -5 -4 -4 -4 -4 -4 -3 ------- Run | Yrd Mat Min Mat Min Exi Min Mat Gar Mat Fac Low Low Dat Pro Fac Low Low Zio Pro Fac Upp Upp Zhi Pro Fac Upp Upp War Pro Combat Hostiles Destroyed 282 | . 9 . 28 3 . 2 22 11 13 10 13 10 . 19 43 . . . 8 28 . 1 . 3 20 8 31 . . Guns 124 | . 9 . 22 2 . 1 9 4 6 4 5 1 . 5 27 . . . 1 15 . 1 . 3 8 1 . . . Cannons 85 | . . . 6 1 . 1 7 4 7 6 . 8 . 5 6 . . . 6 5 . . . . 6 2 15 . . AOE 67 | . . . . . . . 6 3 . . 8 . . 8 7 . . . . 8 . . . . 6 5 16 . . Classes Destroyed 23 | . 6 . 4 . . 2 1 . . 4 . 1 . 1 1 . . . 2 1 . . . . . . . . . Worker 19 | . 3 . 3 . . . . . . 1 . . . . 7 . . . . 4 . . . . 1 . . . . Builder 17 | . . . 1 . . . 2 . . . . . . . 9 . . . . 2 . . . . 3 . . . . Tunneler 4 | . . . . . . 1 . . 1 . . . . . 1 . . . . 1 . . . . . . . . . Hauler 17 | . 2 . 4 . . . 4 . 4 . . . . . 1 . . . . 1 . . . . 1 . . . . Recycler 13 | . 3 . 1 . . . 1 . . 2 . . . . 3 . . . . 2 . . . . 1 . . . . Minesweeper 3 | . . . . . . . . . . . . 1 . 1 . . . . . . . . . . . 1 . . . Mechanic 3 | . . . 1 . . . . . . . . . . . 1 . . . . 1 . . . . . . . . . Operator 7 | . . . 3 . . . 1 . 2 . . . . . 1 . . . . . . . . . . . . . . Drone 4 | . . . . . . . . . . . . . . . . . . . . 2 . . . . 1 1 . . . Watcher 16 | . 1 . 4 . . . 1 . 2 1 . . . . 5 . . . . 1 . . . . 1 . . . . Swarmer 77 | . 3 . 15 2 . 1 12 11 . . 2 6 . 5 8 . . . . 2 . . . . . 1 9 . . Saboteur 2 | . . . . . . . . . . . . . . . 1 . . . . . . . . . 1 . . . . Grunt 93 | . 6 . 4 1 . . 6 . 8 . 8 . . 5 22 . . . . 12 . . . 3 2 2 14 . . Brawler 10 | . . . . . . . . . . . . . . 1 2 . . . . 4 . 1 . . . 1 1 . . Duelist 11 | . . . . . . 1 . . . . 1 . . 4 . . . . . . . . . . . 2 3 . . Protector 5 | . . . . . . . . . . 1 . . . . . . . . 2 1 . . . . . . 1 . . Sentry 27 | . . . 9 . . . 3 . 5 . 2 . . 2 1 . . . 1 2 . . . . 1 . 1 . . Demolisher 2 | . . . . . . . . . . . . . . . . . . . 2 . . . . . . . . . . Specialist 2 | . . . . . . . . . . 2 . . . . . . . . . . . . . . . . . . . Hunter 14 | . . . . . . . 1 . . 4 . . . 2 1 . . . . 1 . . . . 3 . 2 . . Programmer 32 | . . . . . . . . . . 2 . . . . 8 . . . 2 6 . . . . 13 1 . . . Heavy 1 | . . . . . . . . . . 1 . . . . . . . . . . . . . . . . . . . Behemoth 2 | . . . . . . . . . . . . . . . . . . . 1 . . . . . . 1 . . . Decomposer 3 | . . . . . . . . . . . . . . . . . . . . . . . . . . 3 . . . Thug 1 | . . . . . . . . . . . . 1 . . . . . . . . . . . . . . . . . Butcher 3 | . . . . . . . . . . . . 3 . . . . . . . . . . . . . . . . . Best Kill Streak 10 | . 4 . 8 2 . 1 5 8 4 8 9 4 . 9 7 . . . 2 10 . 1 . 3 6 6 9 . . Combat Bots Only 9 | . 3 . 8 2 . 1 4 8 2 4 9 4 . 9 5 . . . 2 8 . 1 . 3 3 6 9 . . Max Kills in Single Turn 5 | . 2 . 2 1 . 1 3 3 1 1 4 2 . 3 5 . . . 1 4 . 1 . 1 4 4 4 . . Gunslinging 1 | . . . . . . . . 1 . . . . . . . . . . . . . . . . . . . . . Exploded 4 | . . . . . . . 2 3 . . 4 . . 3 4 . . . . 4 . . . . 3 3 4 . . Melee . | . . . . . . . . . . . . . . . . . . . . . . . . . . . . . . Uniques/NPCs Destroyed . | . . . . . . . . . . . . . . . . . . . . . . . . . . . . . . Combat | -11 -10 -10 -9 -9 -9 -8 -8 -8 -8 -7 -7 -7 -7 -6 -6 -6 -6 -6 -5 -5 -5 -5 -5 -4 -4 -4 -4 -4 -3 -------- Run | Yrd Mat Min Mat Min Exi Min Mat Gar Mat Fac Low Low Dat Pro Fac Low Low Zio Pro Fac Upp Upp Zhi Pro Fac Upp Upp War Pro Hostile Shots Fired 1292 | . 48 . 135 10 . 3 70 21 36 80 77 22 . 91 176 . 1 . 27 110 . 1 . 2 171 18 124 39 30 Missed 422 | . 10 . 37 2 . 1 26 7 10 27 28 4 . 29 73 . . . 5 35 . . . . 56 4 45 14 9 Damage Taken 15778 | 1 476 116 1089 118 . 14 407 82 312 1004 840 322 . 1085 1504 72 12 . 768 1270 81 32 . 31 2467 378 2412 408 477 Core 2066 | . 136 15 150 . . . 44 23 34 139 15 31 . 170 89 . . . 34 52 . . . . 111 33 360 265 365 Absorbed by Shields 1685 | . . . . . . . 163 34 116 49 . . . . . 8 3 . 19 354 48 29 . 30 654 113 65 . . Redirected to Shielding 57 | . . . . . . . . . . . . . . . . . . . . . . . . . . . . . 57 Ignored by Resistances 94 | . . . 94 . . . . . . . . . . . . . . . . . . . . . . . . . . Regen/Repaired (Parts) 799 | . 93 . 56 . . . . . 486 . . . . . . . . . . 11 . . . . 100 . . 53 . Core Remaining (%) 72 | 100 . 39 . . . 62 . . 81 . . . . 49 . . . . 85 . . . . 94 . . . . . Volleys Fired 734 | . 63 . 105 7 . 6 44 16 52 25 15 13 . 26 117 1 . 1 28 71 3 7 . 3 56 30 41 . 4 Largest 4 | . 2 . 3 3 . 3 3 3 3 4 4 4 . 4 4 1 . 1 4 4 4 4 . 4 4 4 4 . 1 Hottest 375 | . 70 . 102 102 . 102 102 102 109 246 246 246 . 296 296 85 . 90 246 246 129 129 . 129 195 190 375 . 90 Shots Fired 2159 | . 125 . 307 21 . 18 126 34 149 96 32 51 . 76 368 1 . 1 106 229 10 28 . 12 190 71 104 . 4 Gun 1517 | . 125 . 256 14 . 12 84 23 102 50 19 26 . 45 292 . . . 51 161 9 28 . 12 147 57 4 . . Cannon 605 | . . . 51 7 . 6 40 10 47 46 7 25 . 27 76 1 . 1 55 64 1 . . . 40 11 86 . 4 Launcher 37 | . . . . . . . 2 1 . . 6 . . 4 . . . . . 4 . . . . 3 3 14 . . Special . | . . . . . . . . . . . . . . . . . . . . . . . . . . . . . . Kinetic 1054 | . 63 . 210 14 . 12 84 23 102 23 . . . . . . . . 51 161 9 28 . 12 187 68 7 . . Thermal 833 | . 62 . 46 . . . . . . 69 26 51 . 62 308 1 . 1 55 64 1 . . . . . 83 . 4 Explosive 37 | . . . . . . . 2 1 . . 6 . . 4 . . . . . 4 . . . . 3 3 14 . . Electromagnetic 235 | . . . 51 7 . 6 40 10 47 4 . . . 10 60 . . . . . . . . . . . . . . Robot Hit Streak 21 | . 8 . 16 7 . 5 14 4 11 10 6 7 . 13 21 . . . 7 12 . 4 . 3 7 8 5 . . Robot Miss Streak 8 | . 4 . 4 2 . 3 4 3 4 4 3 3 . 3 4 . . . 7 5 7 4 . 1 7 5 8 . . Penetration Max 2 | . . . . . . . . . . . . . . . . . . . 1 2 . . . . . . 1 . . Secondary Targets 11 | . . . 6 . . . . 1 . . . . . . . . . . . 2 . . . 1 1 . . . . Max Gunslinging Chain 1 | . . . 1 . . . . 1 . . . . . . . . . . . 1 . . . 1 1 . . . . Shots Hit Robots 1159 | . 76 . 191 11 . 7 80 12 93 53 12 32 . 39 184 . . . 49 121 . 12 . 6 90 39 52 . . Core Hits 744 | . 30 . 71 6 . 3 45 12 34 20 19 14 . 32 92 . . . 23 76 . 5 . 4 85 55 117 . 1 Critical Kills 11 | . 1 . . 1 . . . . . . . . . . 2 . . . 1 5 . . . 1 . . . . . Critical Parts Destroyed 12 | . . . 1 . . . . . . . . . . . 3 . . . 1 4 . . . 1 2 . . . . Critical Strikes 54 | . 5 . 1 1 . . . . . 2 2 2 . 4 17 . . . 3 12 . . . 2 3 . . . . Burn 21 | . 4 . . . . . . . . 1 2 2 . 4 8 . . . . . . . . . . . . . . Meltdown 5 | . . . . . . . . . . . . . . . 1 . . . 1 3 . . . . . . . . . Destroy 22 | . 1 . 1 1 . . . . . . . . . . 4 . . . 2 9 . . . 2 2 . . . . Blast 2 | . . . . . . . . . . 1 . . . . . . . . . . . . . . 1 . . . . Corrupt 4 | . . . . . . . . . . . . . . . 4 . . . . . . . . . . . . . . Melee Attacks 2 | . . . . . . . . . 2 . . . . . . . . . . . . . . . . . . . . Impact . | . . . . . . . . . . . . . . . . . . . . . . . . . . . . . . Slashing . | . . . . . . . . . . . . . . . . . . . . . . . . . . . . . . Piercing 1 | . . . . . . . . . 1 . . . . . . . . . . . . . . . . . . . . Sneak Attacks 1 | . . . . . . . . . 1 . . . . . . . . . . . . . . . . . . . . Combat Hostiles . | . . . . . . . . . . . . . . . . . . . . . . . . . . . . . . Follow-up Attacks . | . . . . . . . . . . . . . . . . . . . . . . . . . . . . . . Damage Inflicted 42324 | 3 1010 . 2643 192 . 125 2095 393 2001 2059 1506 1036 . 2129 7009 . . . 1550 6306 . 288 . 182 5331 2075 4388 . 3 Guns 18786 | . 1010 . 1755 142 . 62 772 111 896 908 371 423 . 698 4924 . . . 591 2753 . 288 . 182 2118 680 102 . . Cannons 10558 | . . . 841 50 . 63 753 120 971 675 63 613 . 439 1208 . . . 959 1360 . . . . 777 267 1399 . . Explosions 12914 | . . . 47 . . . 570 162 134 469 1072 . . 992 877 . . . . 2149 . . . . 2427 1128 2887 . . Melee . | . . . . . . . . . . . . . . . . . . . . . . . . . . . . . . Ramming 66 | 3 . . . . . . . . . 7 . . . . . . . . . 44 . . . . 9 . . . 3 Kinetic 12021 | . 550 . 1409 142 . 62 772 111 896 279 . . . . . . . . 591 2753 . 288 . 182 2895 947 144 . . Thermal 15495 | . 460 . 393 . . . 251 . 134 1240 434 1036 . 954 6004 . . . 959 1594 . . . . 679 . 1357 . . Explosive 10550 | . . . . . . . 319 162 . 469 1072 . . 992 . . . . . 1773 . . . . 1748 1128 2887 . . Electromagnetic 4192 | . . . 841 50 . 63 753 120 971 64 . . . 183 1005 . . . . 142 . . . . . . . . . Impact . | . . . . . . . . . . . . . . . . . . . . . . . . . . . . . . Slashing . | . . . . . . . . . . . . . . . . . . . . . . . . . . . . . . Piercing . | . . . . . . . . . . . . . . . . . . . . . . . . . . . . . . Highest Corruption 38 | . 1 2 . . . . . . 2 2 2 2 2 2 1 . . . 1 5 5 5 5 5 27 27 38 38 . Average Corruption 13 | . 1 1 . . . . . . 2 1 2 2 2 2 1 . . . 1 4 5 5 5 5 19 27 31 38 . Corruption Purged 5 | . . . . . . . . . . . . . . . 2 . . . 1 . . . . . 2 . . . . Corruption Blocked . | . . . . . . . . . . . . . . . . . . . . . . . . . . . . . . Effects 516 | . 1 2 . . . . . . 5 7 10 9 3 15 2 . . . 7 19 37 35 6 16 82 65 154 41 . Message Errors 120 | . 1 1 . . . . . . 2 . 3 . . 2 1 . . . 3 1 8 8 2 7 21 16 32 12 . Matter Fused 107 | . . 1 . . . . . . 1 . 1 4 . 4 . . . . 1 5 11 6 3 4 14 14 32 6 . Heat Flow Errors 72 | . . . . . . . . . 1 . . 2 1 1 . . . . . 3 6 6 1 2 8 11 25 5 . Energy Discharges 67 | . . . . . . . . . 1 4 2 . . 3 . . . . 1 2 3 5 . . 8 9 24 5 . Parts Rejected 5 | . . . . . . . . . . . . . . . 1 . . . . 1 . 1 . . 1 . 1 . . Parts Fused 9 | . . . . . . . . . . . . 2 1 . . . . . . 1 . 1 . 1 1 . 1 1 . Data Loss (minor) 62 | . . . . . . . . . . 2 3 . 1 2 . . . . . . 3 5 . 1 8 10 17 10 . Data Loss (major) 24 | . . . . . . . . . . 1 . . . 1 . . . . . 1 1 1 . 1 5 2 10 1 . Misfires 17 | . . . . . . . . . . . 1 . . . . . . . 1 1 2 1 . . 4 3 4 . . Alerts 12 | . . . . . . . . . . . . . . 2 . . . . . 3 2 . . . . . 4 1 . Misdirections 2 | . . . . . . . . . . . . . . . . . . . . . . . . . 2 . . . . Weapon Failures 19 | . . . . . . . . . . . . 1 . . . . . . 1 1 1 1 . . 10 . 4 . . Overload Shots . | . . . . . . . . . . . . . . . . . . . . . . . . . . . . . . Overflow Damage 742 | . . . 27 . . . 37 . 71 46 115 29 . 13 131 . . . . 66 . . . . 123 2 82 . . Projectiles 315 | . . . 11 . . . 17 . 71 24 . 29 . 13 88 . . . . 18 . . . . 8 2 34 . . Explosions 427 | . . . 16 . . . 20 . . 22 115 . . . 43 . . . . 48 . . . . 115 . 48 . . Melee . | . . . . . . . . . . . . . . . . . . . . . . . . . . . . . . Knockbacks 8 | . . . . . . . . . . 1 . . . . . . . . . . . . . . 7 . . . . Impact 1 | . . . . . . . . . . . . . . . . . . . . . . . . . 1 . . . . Kinetic 7 | . . . . . . . . . . 1 . . . . . . . . . . . . . . 6 . . . . Secondary . | . . . . . . . . . . . . . . . . . . . . . . . . . . . . . . Self-Inflicted Damage 1393 | 1 . . 39 . . . 54 . 26 205 11 . . . . . . . . 173 . . . . 205 62 616 . 1 Shots 38 | . . . 1 . . . 3 . 1 2 1 . . . . . . . . 4 . . . . 4 2 20 . . Rammed 6 | 1 . . . . . . . . . 1 . . . . . . . . . 1 . . . . 1 . . . 2 Targets Rammed 6 | 1 . . . . . . . . . 1 . . . . . . . . . 1 . . . . 1 . . . 2 Kicked . | . . . . . . . . . . . . . . . . . . . . . . . . . . . . . . Crushed . | . . . . . . . . . . . . . . . . . . . . . . . . . . . . . . Highest Temperature 621 | . 171 . 288 127 . 102 105 121 346 270 425 337 158 621 441 56 . 44 396 545 302 267 122 210 382 248 198 189 16 Average Temperature 99 | . 46 . 73 60 . 47 23 57 114 88 154 156 96 199 109 33 . 29 157 88 127 77 66 76 123 72 85 86 9 Received Heat Transfer 2286 | . 258 . 252 51 . . 135 . 140 4 204 54 . 90 354 18 . . 49 164 18 . . 4 88 52 141 210 . Effects 30 | . . . 5 . . . . . 2 . 2 1 . 3 5 . . . 1 4 1 . . . 6 . . . . Shutdowns 7 | . . . . . . . . . . . 1 . . 2 1 . . . 1 1 . . . . 1 . . . . Energy Bleed 3 | . . . . . . . . . 1 . . . . . 1 . . . . . . . . . 1 . . . . Interference 12 | . . . 5 . . . . . 1 . . . . . 1 . . . . 2 . . . . 3 . . . . Matter Decay 3 | . . . . . . . . . . . 1 . . . . . . . . 1 1 . . . . . . . . Short Circuit 3 | . . . . . . . . . . . . . . . 2 . . . . . . . . . 1 . . . . Damage (minor) 1 | . . . . . . . . . . . . 1 . . . . . . . . . . . . . . . . . Damage (core) 1 | . . . . . . . . . . . . . . 1 . . . . . . . . . . . . . . . Siege Activations . | . . . . . . . . . . . . . . . . . . . . . . . . . . . . . . Robots Corrupted 1 | . . . . . . . . . . . . . . . 1 . . . . . . . . . . . . . . Combat Hostiles . | . . . . . . . . . . . . . . . . . . . . . . . . . . . . . . Parts Fried 16 | . . . 4 . . . 3 1 4 . . . . . 4 . . . . . . . . . . . . . . Impact Corruptions . | . . . . . . . . . . . . . . . . . . . . . . . . . . . . . . Robots Melted 11 | . . . . . . . . . . . . 1 . 2 4 . . . 1 3 . . . . . . . . . Combat Hostiles 6 | . . . . . . . . . . . . 1 . 1 3 . . . 1 . . . . . . . . . . Parts Melted 76 | . 4 . 3 . . 1 . . . 8 . 6 . 6 28 . . . 8 10 . . . . 1 . 1 . . Heat Transferred 24809 | . 1665 . 800 . . . 300 . 150 1927 950 1900 . 2050 9683 . . . 1026 2225 . . . . 450 . 1683 . . Parts Sabotaged . | . . . . . . . . . . . . . . . . . . . . . . . . . . . . . . Parts Stolen . | . . . . . . . . . . . . . . . . . . . . . . . . . . . . . . Parts Stripped . | . . . . . . . . . . . . . . . . . . . . . . . . . . . . . . Power Chain Reactions 7 | . . . 1 . . . 4 . 2 . . . . . . . . . . . . . . . . . . . . Alert | -11 -10 -10 -9 -9 -9 -8 -8 -8 -8 -7 -7 -7 -7 -6 -6 -6 -6 -6 -5 -5 -5 -5 -5 -4 -4 -4 -4 -4 -3 ------- Run | Yrd Mat Min Mat Min Exi Min Mat Gar Mat Fac Low Low Dat Pro Fac Low Low Zio Pro Fac Upp Upp Zhi Pro Fac Upp Upp War Pro Peak Influence 1285 | . 213 11 404 213 . 170 363 610 435 486 . . . . 1020 . . . . 1285 . . . . 746 . . . . Initial 297 | . . 11 3 157 . . . 191 297 86 . . . . 161 . . . . 2 . . . . 124 . . . . Average 236 | . 91 11 188 128 . 40 97 395 178 57 . . . . 274 . . . . 563 . . . . 290 . . . . Maximum Alert Level 4 | . 1 . 2 1 . . 1 2 2 2 . . . . 3 . . . . 4 . . . . 3 . . . . Low Security (%) 54 | 100 99 100 60 75 . 100 78 6 62 91 . . . . 36 . . . . 12 . . . . 43 . . . . Level 1 30 | . . . 38 24 . . 21 58 34 6 . . . . 46 . . . . 37 . . . . 24 . . . . Level 2 9 | . . . 1 . . . . 35 3 2 . . . . 13 . . . . 17 . . . . 24 . . . . Level 3 3 | . . . . . . . . . . . . . . . 3 . . . . 12 . . . . 8 . . . . Level 4 2 | . . . . . . . . . . . . . . . . . . . . 19 . . . . . . . . . Level 5 . | . . . . . . . . . . . . . . . . . . . . . . . . . . . . . . High Security . | . . . . . . . . . . . . . . . . . . . . . . . . . . . . . . Max Security . | . . . . . . . . . . . . . . . . . . . . . . . . . . . . . . Squads Dispatched 77 | . 3 . 6 . . . 4 . 5 9 . . . 1 19 . . . . 16 . . . . 13 . 1 . . Investigation 16 | . 1 . 2 . . . . . 1 1 . . . . 5 . . . . 4 . . . . 2 . . . . Extermination 17 | . . . . . . . . . . 2 . . . . 8 . . . . 2 . . . . 5 . . . . Reinforcement 19 | . 2 . 4 . . . 1 . 1 3 . . . . 4 . . . . 2 . . . . 2 . . . . Assault 9 | . . . . . . . . . 1 . . . . 1 2 . . . . 3 . . . . 1 . 1 . . Garrison 16 | . . . . . . . 3 . 2 3 . . . . . . . . . 5 . . . . 3 . . . . Intercept . | . . . . . . . . . . . . . . . . . . . . . . . . . . . . . . Searches Triggered . | . . . . . . . . . . . . . . . . . . . . . . . . . . . . . . Construction Impeded 3 | . . . . . . . . . . . . . . . 1 . . . . 1 . . . . 1 . . . . Haulers Reinforced 2 | . . . . . . . . . . . . . . . 1 . . . . 1 . . . . . . . . . Active Scanning Responses . | . . . . . . . . . . . . . . . . . . . . . . . . . . . . . . Cargo Convoy Interrupts 1 | . . . . . . . . . . 1 . . . . . . . . . . . . . . . . . . . Stealth | -11 -10 -10 -9 -9 -9 -8 -8 -8 -8 -7 -7 -7 -7 -6 -6 -6 -6 -6 -5 -5 -5 -5 -5 -4 -4 -4 -4 -4 -3 --------- Run | Yrd Mat Min Mat Min Exi Min Mat Gar Mat Fac Low Low Dat Pro Fac Low Low Zio Pro Fac Upp Upp Zhi Pro Fac Upp Upp War Pro Distress Signals 65 | . 1 . 2 . . . 7 . 4 2 . . . . 1 . . . 41 3 . . . . 1 . 1 2 . Communications Jammed . | . . . . . . . . . . . . . . . . . . . . . . . . . . . . . . Distress Signals . | . . . . . . . . . . . . . . . . . . . . . . . . . . . . . . Times Spotted 537 | . 18 . 50 5 . 7 43 8 25 13 17 11 . 22 62 12 7 . 21 58 12 18 . 12 46 10 37 9 14 Peak Tracking Total 10 | . 6 . 5 3 . 4 7 3 4 6 9 4 . 10 5 4 4 . 6 10 5 5 . 4 6 7 9 8 7 Tactical Retreats 26 | . . . 1 . . . 4 1 1 . . . . . 4 1 1 . . 4 3 . . 1 2 . 2 . 1 Traps | -11 -10 -10 -9 -9 -9 -8 -8 -8 -8 -7 -7 -7 -7 -6 -6 -6 -6 -6 -5 -5 -5 -5 -5 -4 -4 -4 -4 -4 -3 ------- Run | Yrd Mat Min Mat Min Exi Min Mat Gar Mat Fac Low Low Dat Pro Fac Low Low Zio Pro Fac Upp Upp Zhi Pro Fac Upp Upp War Pro Traps Triggered 17 | . 4 2 3 . . . . 2 1 . . . . . 1 . . . 1 1 1 . . . . 1 . . . Indirectly . | . . . . . . . . . . . . . . . . . . . . . . . . . . . . . . Trap Hack Attempts . | . . . . . . . . . . . . . . . . . . . . . . . . . . . . . . Triggered . | . . . . . . . . . . . . . . . . . . . . . . . . . . . . . . Disarmed . | . . . . . . . . . . . . . . . . . . . . . . . . . . . . . . Reprogrammed 6 | . . . . . . . . . . . . . . . 6 . . . . . . . . . . . . . . Reused 5 | . . . . . . . . . . 1 . . . . 1 . . . . 3 . . . . . . . . . Traps Extracted 1 | . . . . . . . . . . 1 . . . . . . . . . . . . . . . . . . . Installed 10 | . . . . . . . . . . 2 . . . . 4 . 1 . . 3 . . . . . . . . . Triggered 28 | . . . . . . . . . . 1 2 . . . 1 . . . . 3 . . . . . . . 21 . Most Traps Carried 7 | . . . . . . . . 4 4 4 3 3 3 7 7 3 3 3 3 3 . . . . . . . . . Machines | -11 -10 -10 -9 -9 -9 -8 -8 -8 -8 -7 -7 -7 -7 -6 -6 -6 -6 -6 -5 -5 -5 -5 -5 -4 -4 -4 -4 -4 -3 ---------- Run | Yrd Mat Min Mat Min Exi Min Mat Gar Mat Fac Low Low Dat Pro Fac Low Low Zio Pro Fac Upp Upp Zhi Pro Fac Upp Upp War Pro Machines Disabled 60 | . . . 2 . . . 2 2 1 2 1 . . 1 15 1 . . 3 17 . . . . 11 1 1 . . Max in Single Turn 5 | . . . 1 . . . 1 1 1 2 1 . . 1 5 . . . 1 2 . . . . 4 1 1 . . Garrison Access 3 | . . . . . . . . . 1 1 . . . . . . . . . 1 . . . . . . . . . Garrison Relay 1 | . . . . . . . . 1 . . . . . . . . . . . . . . . . . . . . . Machines Repaired . | . . . . . . . . . . . . . . . . . . . . . . . . . . . . . . Machines Dismantled . | . . . . . . . . . . . . . . . . . . . . . . . . . . . . . . Machines Sabotaged . | . . . . . . . . . . . . . . . . . . . . . . . . . . . . . . Overloaded Fab Kills . | . . . . . . . . . . . . . . . . . . . . . . . . . . . . . . Hacking | -11 -10 -10 -9 -9 -9 -8 -8 -8 -8 -7 -7 -7 -7 -6 -6 -6 -6 -6 -5 -5 -5 -5 -5 -4 -4 -4 -4 -4 -3 --------- Run | Yrd Mat Min Mat Min Exi Min Mat Gar Mat Fac Low Low Dat Pro Fac Low Low Zio Pro Fac Upp Upp Zhi Pro Fac Upp Upp War Pro Machines Accessed 93 | . 7 1 9 1 2 . 6 2 13 4 . . 3 . 17 1 1 . . 12 2 . 5 . 6 1 . . . Terminals 51 | . 5 . 6 . . . 5 2 10 2 . . . . 11 . 1 . . 4 . . . . 5 . . . . Fabricators 10 | . . . . . . . . . . . . . . . 5 . . . . 5 . . . . . . . . . Repair Stations 9 | . 1 . 2 . . . . . 2 . . . . . 1 . . . . 2 . . . . 1 . . . . Recycling Units 2 | . 1 . . . . . . . . . . . . . . . . . . 1 . . . . . . . . . Scanalyzers 2 | . . . 1 . . . . . 1 . . . . . . . . . . . . . . . . . . . . Garrison Access 3 | . . . . . . . 1 . . 2 . . . . . . . . . . . . . . . . . . . Total Hacks 299 | . 12 1 25 1 2 . 25 4 51 12 . . 27 . 53 1 1 . . 31 9 . 18 . 25 1 . . . Successful 178 | . 6 1 12 1 2 . 15 2 24 5 . . 27 . 30 1 1 . . 15 9 . 18 . 8 1 . . . Failed 120 | . 5 . 13 . . . 10 2 27 7 . . . . 23 . . . . 16 . . . . 17 . . . . Catastrophic 15 | . 1 . 1 . . . . . 2 1 . . . . 2 . . . . 3 . . . . 5 . . . . Database Lockouts 1 | . 1 . . . . . . . . . . . . . . . . . . . . . . . . . . . . Manual 108 | . 6 . 10 . 1 . 20 1 24 6 . . . . 12 . . . . 12 . . . . 16 . . . . Terminals 169 | . 9 . 15 . . . 24 4 35 6 . . . . 37 . 1 . . 15 . . . . 23 . . . . Fabricators 25 | . . . . . . . . . . . . . . . 15 . . . . 10 . . . . . . . . . Repair Stations 27 | . 2 . 5 . . . . . 12 . . . . . 1 . . . . 5 . . . . 2 . . . . Recycling Units 2 | . 1 . . . . . . . . . . . . . . . . . . 1 . . . . . . . . . Scanalyzers 9 | . . . 5 . . . . . 4 . . . . . . . . . . . . . . . . . . . . Garrison Access 7 | . . . . . . . 1 . . 6 . . . . . . . . . . . . . . . . . . . Terminal Hacks 113 | . 3 1 3 1 2 . 10 1 8 2 . . 27 . 17 1 1 . . 3 9 . 18 . 5 1 . . . Record 28 | . . . . . 1 . 1 . . . . . 6 . 4 . 1 . . . 8 . 6 . . 1 . . . Part Schematic 16 | . . . . . . . . . . . . . 12 . . . . . . . . . 4 . . . . . . Robot Schematic 6 | . . . . . . . . . . . . . 6 . . . . . . . . . . . . . . . . Robot Analysis 11 | . 2 . 1 . . . 4 . . . . . . . . . . . . . . . 4 . . . . . . Prototype ID Bank 9 | . . . . . . . 1 . . . . . 3 . 1 . . . . . . . 4 . . . . . . Open Door 4 | . . 1 . 1 . . . . . . . . . . . 1 . . . . 1 . . . . . . . . Level Access Points 1 | . . . . . . . . . . . . . . . . . . . . . . . . . 1 . . . . Branch Access Points 3 | . . . . . . . . . . 1 . . . . 1 . . . . 1 . . . . . . . . . Terminal Index 2 | . . . . . . . . . . . . . . . 1 . . . . . . . . . 1 . . . . Fabricator Index 1 | . . . . . . . . . . . . . . . 1 . . . . . . . . . . . . . . Repair Station Index 1 | . . . . . . . . . . . . . . . 1 . . . . . . . . . . . . . . Scanalyzer Index 1 | . . . . . . . . . . . . . . . . . . . . . . . . . 1 . . . . Alert Level 6 | . . . . . . . . . 2 . . . . . 3 . . . . 1 . . . . . . . . . Unreport Threat 10 | . . . . . . . 2 . 2 . . . . . 3 . . . . 1 . . . . 2 . . . . Locate Traps 8 | . 1 . 1 . . . 1 . 3 1 . . . . 1 . . . . . . . . . . . . . . Reprogram Traps 1 | . . . . . . . . . . . . . . . 1 . . . . . . . . . . . . . . Hauler Manifests 3 | . . . 1 . . . 1 . 1 . . . . . . . . . . . . . . . . . . . . Garrison Registry 1 | . . . . . . . . 1 . . . . . . . . . . . . . . . . . . . . . Derelict Proto ID Bank 1 | . . . . . 1 . . . . . . . . . . . . . . . . . . . . . . . . Fabricator Hacks 15 | . . . . . . . . . . . . . . . 9 . . . . 6 . . . . . . . . . Load Schematic 8 | . . . . . . . . . . . . . . . 5 . . . . 3 . . . . . . . . . Build 7 | . . . . . . . . . . . . . . . 4 . . . . 3 . . . . . . . . . Repair Station Hacks 19 | . 2 . 3 . . . . . 10 . . . . . . . . . . 2 . . . . 2 . . . . Scan Component 10 | . 1 . 2 . . . . . 5 . . . . . . . . . . 1 . . . . 1 . . . . Repair 9 | . 1 . 1 . . . . . 5 . . . . . . . . . . 1 . . . . 1 . . . . Recycling Unit Hacks 1 | . . . . . . . . . . . . . . . . . . . . 1 . . . . . . . . . Retrieve Components 1 | . . . . . . . . . . . . . . . . . . . . 1 . . . . . . . . . Scanalyzer 9 | . . . 5 . . . . . 4 . . . . . . . . . . . . . . . . . . . . Insert Component 4 | . . . 2 . . . . . 2 . . . . . . . . . . . . . . . . . . . . Analyze 5 | . . . 3 . . . . . 2 . . . . . . . . . . . . . . . . . . . . Garrison Access Hacks 1 | . . . . . . . 1 . . . . . . . . . . . . . . . . . . . . . . Unlock Access 1 | . . . . . . . 1 . . . . . . . . . . . . . . . . . . . . . . Unauthorized Hacks 20 | . 1 . 1 . . . 4 1 2 3 . . . . 4 . . . . 3 . . . . 1 . . . . Terminals 17 | . . . 1 . . . 4 1 2 2 . . . . 3 . . . . 3 . . . . 1 . . . . Assimilate 3 | . . . . . . . 2 . . . . . . . 1 . . . . . . . . . . . . . . Botnet 13 | . . . 1 . . . 2 . 2 2 . . . . 2 . . . . 3 . . . . 1 . . . . Override 1 | . . . . . . . . 1 . . . . . . . . . . . . . . . . . . . . . Fabricators 1 | . . . . . . . . . . . . . . . 1 . . . . . . . . . . . . . . Liberate 1 | . . . . . . . . . . . . . . . 1 . . . . . . . . . . . . . . Repair Stations . | . . . . . . . . . . . . . . . . . . . . . . . . . . . . . . Recycling Units 1 | . 1 . . . . . . . . . . . . . . . . . . . . . . . . . . . . Tunnel 1 | . 1 . . . . . . . . . . . . . . . . . . . . . . . . . . . . Scanalyzers . | . . . . . . . . . . . . . . . . . . . . . . . . . . . . . . Garrison Access 1 | . . . . . . . . . . 1 . . . . . . . . . . . . . . . . . . . Jam 1 | . . . . . . . . . . 1 . . . . . . . . . . . . . . . . . . . Data Cores Recovered 3 | . . . . . . . 1 . . 1 . . . . 1 . . . . . . . . . . . . . . Used 1 | . . . . . . . . . . . . . . . 1 . . . . . . . . . . . . . . Hacking Detections 73 | . 5 . 9 . . . 6 1 13 4 . . . . 17 . 1 . . 11 . . . . 6 . . . . Full Trace Events 15 | . . . 2 . . . . 1 2 . . . . . 5 . . . . 3 . . . . 2 . . . . Feedback Events . | . . . . . . . . . . . . . . . . . . . . . . . . . . . . . . Feedback Blocked . | . . . . . . . . . . . . . . . . . . . . . . . . . . . . . . Robot Schematics Acquired 9 | . . . . . . . . . . . . . 6 . . . . 3 . . . . . . . . . . . Robots Built . | . . . . . . . . . . . . . . . . . . . . . . . . . . . . . . Authchips . | . . . . . . . . . . . . . . . . . . . . . . . . . . . . . . Time . | . . . . . . . . . . . . . . . . . . . . . . . . . . . . . . Total Robot Build Rating . | . . . . . . . . . . . . . . . . . . . . . . . . . . . . . . Part Schematics Acquired 33 | . . . 2 . . . . . 2 . . . 12 . . . . 13 . . . . 4 . . . . . . Parts Built 7 | . . . . . . . . . . . . . . . 4 . . . . 3 . . . . . . . . . Authchips . | . . . . . . . . . . . . . . . . . . . . . . . . . . . . . . Time 758 | . . . . . . . . . . . . . . . 421 . . . . 337 . . . . . . . . . Total Part Build Rating 42 | . . . . . . . . . . . . . . . 24 . . . . 18 . . . . . . . . . Parts Repaired 9 | . 1 . 1 . . . . . 5 . . . . . . . . . . 1 . . . . 1 . . . . Time 394 | . 26 . 51 . . . . . 234 . . . . . . . . . . 39 . . . . 44 . . . . Parts Recycled . | . . . . . . . . . . . . . . . . . . . . . . . . . . . . . . Recycled Matter . | . . . . . . . . . . . . . . . . . . . . . . . . . . . . . . Retrieved Matter . | . . . . . . . . . . . . . . . . . . . . . . . . . . . . . . Retrieved Components 2 | . . . . . . . . . . . . . . . . . . . . 2 . . . . . . . . . Parts Scanalyzed 4 | . . . 2 . . . . . 2 . . . . . . . . . . . . . . . . . . . . Part Schematics Acquired 4 | . . . 2 . . . . . 2 . . . . . . . . . . . . . . . . . . . . Parts Damaged . | . . . . . . . . . . . . . . . . . . . . . . . . . . . . . . Bothacking | -11 -10 -10 -9 -9 -9 -8 -8 -8 -8 -7 -7 -7 -7 -6 -6 -6 -6 -6 -5 -5 -5 -5 -5 -4 -4 -4 -4 -4 -3 ------------ Run | Yrd Mat Min Mat Min Exi Min Mat Gar Mat Fac Low Low Dat Pro Fac Low Low Zio Pro Fac Upp Upp Zhi Pro Fac Upp Upp War Pro Used RIF Installer . | . . . . . . . . . . . . . . . . . . . . . . . . . . . . . . Robots Hacked 1 | . . . . . . . . . 1 . . . . . . . . . . . . . . . . . . . . Non-combat . | . . . . . . . . . . . . . . . . . . . . . . . . . . . . . . Combat 1 | . . . . . . . . . 1 . . . . . . . . . . . . . . . . . . . . Robot Hacks Applied 1 | . . . . . . . . . 1 . . . . . . . . . . . . . . . . . . . . parse_system 1 | . . . . . . . . . 1 . . . . . . . . . . . . . . . . . . . . Relay Couplers Released 6 | . . . . . . . . 3 1 . . . . . . . . . . 2 . . . . . . . . . Machine Destruction 6 | . . . . . . . . 3 1 . . . . . . . . . . 2 . . . . . . . . . Fabnet Peak Effective % . | . . . . . . . . . . . . . . . . . . . . . . . . . . . . . . Robots Rewired 10 | . . . . . . . . . . 1 2 . . 2 . 1 . . 2 . . . . . . 2 . . . Allies Hacked . | . . . . . . . . . . . . . . . . . . . . . . . . . . . . . . Hacks Repelled . | . . . . . . . . . . . . . . . . . . . . . . . . . . . . . . Allies | -11 -10 -10 -9 -9 -9 -8 -8 -8 -8 -7 -7 -7 -7 -6 -6 -6 -6 -6 -5 -5 -5 -5 -5 -4 -4 -4 -4 -4 -3 -------- Run | Yrd Mat Min Mat Min Exi Min Mat Gar Mat Fac Low Low Dat Pro Fac Low Low Zio Pro Fac Upp Upp Zhi Pro Fac Upp Upp War Pro Total Allies 25 | . . . . 6 . . 1 . . 1 2 . . 3 7 1 . . 2 . . . . . . 2 . . . Largest Group 6 | . . . . 6 4 3 3 1 . 1 2 1 1 2 3 1 1 1 2 2 . . . . . 2 . . . Highest-Rated Group 125 | . . . . 104 71 40 34 10 . 32 32 16 16 125 87 20 20 20 98 98 . . . . . 94 . . . Highest-Rated Ally 96 | . . . . 31 31 16 16 10 . 32 16 16 16 96 29 20 20 20 49 49 . . . . . 47 . . . Total Orders 99 | . . . . . . . 2 2 . 2 6 . . . 1 12 3 1 13 8 7 9 1 10 19 3 . . . STAY 4 | . . . . . . . 1 1 . 1 . . . . . . . . . 1 . . . . . . . . . FOLLOW 7 | . . . . . . . 1 1 . 1 . . . . . 1 . . . 1 . 1 . 1 . . . . . EXPLORE 4 | . . . . . . . . . . . 3 . . . . . . . . . 1 . . . . . . . . RETURN 84 | . . . . . . . . . . . 3 . . . 1 11 3 1 13 6 6 8 1 9 19 3 . . . Ally Attacks 1178 | . . . . 11 . 26 12 . . 1 3 14 . 19 108 124 50 . 127 132 116 117 . 123 172 23 . . . Total Damage 22695 | . . . . 181 . 234 138 . . 47 31 110 . 294 1686 2632 633 . 2501 3353 2385 2046 . 2504 3451 469 . . . Kills 153 | . . . . 2 . 6 3 . . . . 1 . 2 11 16 8 . 12 24 8 20 . 13 25 2 . . . Allies Corrupted 1 | . . . . . . . . . . . . . . . . . . . . 1 . . . . . . . . . Allies Melted 2 | . . . . . . . . . . . . . . . . . . . . . . . . . . . . 2 . Intel | -11 -10 -10 -9 -9 -9 -8 -8 -8 -8 -7 -7 -7 -7 -6 -6 -6 -6 -6 -5 -5 -5 -5 -5 -4 -4 -4 -4 -4 -3 ------- Run | Yrd Mat Min Mat Min Exi Min Mat Gar Mat Fac Low Low Dat Pro Fac Low Low Zio Pro Fac Upp Upp Zhi Pro Fac Upp Upp War Pro Robot Analysis Total 11 | . 2 . 1 . . . 4 . . . . . . . . . . . . . . . 4 . . . . . . Derelict Logs Recovered 19 | . . 1 . 1 . . . . . . . 2 . . . 2 3 2 1 . 1 1 . 1 . 2 2 . . Drone Launches 173 | . . . . . . . . . . . 5 . . . 8 14 3 5 22 12 24 11 2 16 48 3 . . . Drone Recoveries 161 | . . . . . . . . . . . 5 . . . 4 12 3 5 26 8 18 11 5 17 45 2 . . . Exploration | -11 -10 -10 -9 -9 -9 -8 -8 -8 -8 -7 -7 -7 -7 -6 -6 -6 -6 -6 -5 -5 -5 -5 -5 -4 -4 -4 -4 -4 -3 ------------- Run | Yrd Mat Min Mat Min Exi Min Mat Gar Mat Fac Low Low Dat Pro Fac Low Low Zio Pro Fac Upp Upp Zhi Pro Fac Upp Upp War Pro Turns Passed 41309 | 49 830 102 2324 892 373 638 1732 496 2292 1514 702 869 131 751 4364 2152 1946 1748 1912 2307 1350 1342 355 718 2473 1337 3053 2409 148 Spaces Moved 18261 | 46 644 100 1260 574 247 412 706 244 1119 772 362 465 75 356 1974 958 882 786 786 891 632 636 171 336 1376 600 392 223 236 Core 392 | 4 . . . . . . . . . . . . . . . . . . . . . . . . . . 55 97 236 Treads . | . . . . . . . . . . . . . . . . . . . . . . . . . . . . . . Legs . | . . . . . . . . . . . . . . . . . . . . . . . . . . . . . . Wheels 17743 | 42 644 100 1260 574 247 412 706 244 1119 772 362 465 75 356 1974 958 882 786 786 891 632 636 171 336 1376 600 337 . . Hover 126 | . . . . . . . . . . . . . . . . . . . . . . . . . . . . 126 . Flight . | . . . . . . . . . . . . . . . . . . . . . . . . . . . . . . Fastest Speed 50 | 50 80 80 130 135 150 150 150 160 160 160 160 175 175 160 175 205 220 205 205 205 205 205 190 205 146 165 205 50 50 Average Speed 199 | 77 86 89 139 149 150 150 155 160 160 160 171 175 175 174 182 219 220 219 219 213 205 205 191 205 151 204 743 1077 50 Slowest Speed 3350 | 80 100 140 230 150 150 150 160 160 160 160 175 175 175 175 250 220 220 220 220 220 205 205 205 205 180 220 3350 2600 50 Overloaded Moves . | . . . . . . . . . . . . . . . . . . . . . . . . . . . . . . Propulsion Burnouts . | . . . . . . . . . . . . . . . . . . . . . . . . . . . . . . Robots Hopped . | . . . . . . . . . . . . . . . . . . . . . . . . . . . . . . Cave-ins Triggered 2 | . . . . . . . . . . . . . . . . . . . . . . . . . 1 . 1 . . Teleports 1 | . . . . . . . . . . . . . . . . . . . . . . . . . . . . . 1 Exploration Rate (%) 63 | 3 96 31 96 92 61 92 46 38 94 18 84 70 68 41 46 97 98 82 81 22 84 81 62 66 29 85 71 38 32 Regions Visited 29 Branch Regions 20 Pre-discovered Areas 12 | . 1 . . . 1 . . . . . . . 1 . . . 1 2 . . 1 . 3 . . 1 1 . . Known Exits Taken 8 | . . . 1 . . . 1 . . 1 1 . . 1 1 . . . . 1 . . . 1 . . . . . Unknown Exits Taken 20 | 1 1 1 . 1 1 1 . . 1 . . 1 1 . . 1 1 1 1 . 1 1 1 . 1 1 1 1 . Scrap Searched 26 | . . . . 1 . 2 . . . . 3 1 . 2 . 2 3 3 1 . 2 2 . . . 3 1 . . Spaces Dug 113 | . . . . . . . . . 1 4 . . . 2 21 1 . . . 12 1 . . . 36 . 31 . 4 Terrain Destroyed 1211 | . . . 5 . . . 33 19 7 73 67 14 . 63 118 1 . . 8 144 7 12 . 6 162 117 351 . 4 Melee 1 | . . . . . . . . . 1 . . . . . . . . . . . . . . . . . . . . Projectile 331 | . . . . . . . . . . 29 7 14 . 20 50 1 . . 8 77 7 12 . 6 53 6 37 . 4 AOE 879 | . . . 5 . . . 33 19 6 44 60 . . 43 68 . . . . 67 . . . . 109 111 314 . . Terrain Rammed . | . . . . . . . . . . . . . . . . . . . . . . . . . . . . . . Walls Destroyed . | . . . . . . . . . . . . . . . . . . . . . . . . . . . . . . Machines Disabled . | . . . . . . . . . . . . . . . . . . . . . . . . . . . . . . Actions | -11 -10 -10 -9 -9 -9 -8 -8 -8 -8 -7 -7 -7 -7 -6 -6 -6 -6 -6 -5 -5 -5 -5 -5 -4 -4 -4 -4 -4 -3 --------- Run | Yrd Mat Min Mat Min Exi Min Mat Gar Mat Fac Low Low Dat Pro Fac Low Low Zio Pro Fac Upp Upp Zhi Pro Fac Upp Upp War Pro Total 21668 | 55 785 113 1614 591 250 419 1247 327 1501 996 423 488 75 431 2477 1003 888 807 904 1140 684 658 204 361 1629 644 463 229 262 Wait 1885 | . 50 10 184 5 1 1 467 17 318 133 8 11 1 20 292 19 6 3 41 137 11 3 4 6 120 . 1 . 16 Move 18234 | 46 643 99 1259 573 246 411 706 243 1118 771 361 464 74 355 1973 957 881 785 785 890 631 635 170 335 1375 599 391 222 236 Hop . | . . . . . . . . . . . . . . . . . . . . . . . . . . . . . . Pick Up 190 | 2 6 2 17 1 1 1 8 9 1 14 6 . . 8 25 5 . 4 7 14 13 5 6 6 19 4 3 3 . Fast Attach 77 | 6 10 . 9 1 . . 2 4 4 6 . . . . 7 2 . 2 3 . . . 8 . 7 1 3 2 . Attach 87 | . 1 . 7 1 1 . 2 2 . 7 11 . . 9 8 . . 1 1 8 4 1 1 . 7 . 11 1 3 Detach 47 | . . . 4 1 . . 2 4 . 7 5 . . 4 7 . . . 1 . . . 3 . 3 . 5 . 1 Swap 97 | 1 7 1 14 . . . 3 3 5 9 . . . 1 9 2 . 2 5 9 4 2 . . 12 2 6 . . Drop 180 | . 5 1 15 2 1 . 13 13 1 18 5 . . . 25 5 . 7 9 6 10 3 12 6 18 2 2 1 . Fire 734 | . 63 . 105 7 . 6 44 16 52 25 15 13 . 26 117 1 . 1 28 71 3 7 . 3 56 30 41 . 4 Melee 2 | . . . . . . . . . 2 . . . . . . . . . . . . . . . . . . . . Ram 5 | . . . . . . . . . . 1 . . . . . . . . . 1 . . . . 1 . . . 2 Kick . | . . . . . . . . . . . . . . . . . . . . . . . . . . . . . . Crush . | . . . . . . . . . . . . . . . . . . . . . . . . . . . . . . Escape Stasis 32 | . . . . . . . . 16 . . . . . . 8 . . . 8 . . . . . . . . . . Rewire 48 | . . . . . . . . . . 3 12 . . 8 . 8 . . 12 . . . . . . 5 . . . Trap 10 | . . . . . . . . . . 2 . . . . 4 . 1 . . 3 . . . . . . . . . Miscellaneous 40 | . . . . . . . . . . . . . . . 2 4 . 2 4 1 8 2 . 5 11 1 . . . Route ------- -11/Scrapyard -10/Materials (discovered 4 exits: *Mat x3 / *Min) -10/Mines -9/Materials (discovered 5 exits: *Mat x3 / *Min x2) -9/Mines (discovered 3 exits: *Mat x2 / *Exi) -9/Exiles -8/Mines (discovered 2 exits: *Mat x2) -8/Materials (discovered 2 exits: *Fac / Gar) -8/Garrison (discovered 3 exits: *Mat x3) -8/Materials (discovered 2 exits: *Fac x2) -7/Factory (discovered 4 exits: *Fac / *Sto / *Low x2) -7/Lower Caves -7/Lower Caves -7/Data Miner -6/Proximity Caves -6/Factory (discovered 4 exits: *Fac x2 / *Low x2) -6/Lower Caves -6/Lower Caves (discovered 2 exits: *Fac / [*Zio]) -6/Zion -5/Proximity Caves -5/Factory (discovered 5 exits: *Fac x3 / *Upp x2) -5/Upper Caves -5/Upper Caves (discovered 2 exits: *Fac / *Zhi) -5/Zhirov -4/Proximity Caves -4/Factory (discovered 6 exits: *Res x4 / *Upp / Ext) -4/Upper Caves -4/Upper Caves (discovered 2 exits: *Res / [*War]) -4/Warlord -3/Proximity Caves History --------- Turn | Location | Event 3 | -11/Scrapyard | Discovered new exit (range 16) 50 | -11/Scrapyard | Entered Materials 170 | -10/Materials | Discovered new exit (range 3) 319 | -10/Materials | Build established: Mutant 347 | -10/Materials | Discovered new exit (range 13) 554 | -10/Materials | Core integrity fell below 50% 573 | -10/Materials | Discovered new exit (range 7) 646 | -10/Materials | Repaired Assault Rifle 786 | -10/Materials | Central database locked down 823 | -10/Materials | Discovered new exit (range 6) 880 | -10/Materials | Entered Mines 916 | -10/Mines | Learned location of 1 exit from Materials 937 | -10/Mines | Discovered new exit (range 10) 942 | -10/Mines | Assembled infested the area 946 | -10/Mines | Met a Derelict who couldn't figure out how to use a Trap Extractor 982 | -10/Mines | Entered Materials 982 | -9/Materials | Evolved 2 slots: Utility x1, Weapon x1 983 | -9/Materials | Identified exit to Mines 1306 | -9/Materials | Build established: Gunner 1369 | -9/Materials | Destroyed 8 combat bots 1717 | -9/Materials | Discovered new exit (range 8) 2051 | -9/Materials | Discovered exit to Mines (range 16) 2384 | -9/Materials | Build established: Tank 2583 | -9/Materials | Discovered new exit (range 4) 2778 | -9/Materials | Discovered new exit (range 14) 3243 | -9/Materials | Repaired Imp. Assault Rifle 3306 | -9/Materials | Entered Mines 3324 | -9/Mines | Met a Derelict bent on vengeance 3348 | -9/Mines | Discovered new exit (range 8) 3355 | -9/Mines | Found the Drone Emporium 3362 | -9/Mines | Found Prototype Device 3372 | -9/Mines | Identified Thief Drone Bay 3513 | -9/Mines | Assisted by bots powering up and referring to "LRC-V3" 3548 | -9/Mines | Learned location of 1 exit from Lower Caves 3581 | -9/Mines | Received a Mining Laser from a helpful Derelict 3734 | -9/Mines | Discovered new exit (range 7) 4189 | -9/Mines | Deemed a non-threat by the Exiles lab entrance 4190 | -9/Mines | Discovered new exit (range 5) 4198 | -9/Mines | Entered Exiles 4198 | -9/Exiles | Accompanied by 4 allies 4228 | -9/Exiles | Led the pair of lost Derelicts to a safe place 4236 | -9/Exiles | Met 8R-AWN 4260 | -9/Exiles | Met EX-HEX 4302 | -9/Exiles | Met EX-BIN 4321 | -9/Exiles | Met EX-DEC 4327 | -9/Exiles | Learned location of Zion (-6) 4372 | -9/Exiles | Aligned with FarCom system 4374 | -9/Exiles | Given EX-Vault access code 4410 | -9/Exiles | Opened EX-Vault 4425 | -9/Exiles | Found 0b10 Alert Chip 4459 | -9/Exiles | Warned to stay clear of 0b10 Research branches 4558 | -9/Exiles | Discovered new exit (range 10) 4571 | -9/Exiles | Left Exiles lab with 0b10 Alert Chip 4571 | -9/Exiles | Entered Mines 4571 | -8/Mines | Accompanied by 3 allies 4591 | -8/Mines | Discovered new exit (range 6) 4860 | -8/Mines | Build established: Skirmisher 4944 | -8/Mines | Discovered new exit (range 3) 5209 | -8/Mines | Entered Materials 5209 | -8/Materials | Accompanied by 2 allies 5209 | -8/Materials | Evolved 2 slots: Utility x2 5508 | -8/Materials | Build established: Tank 6369 | -8/Materials | Garrison activated, responded to threat 6536 | -8/Materials | Discovered new exit (range 15) 6941 | -8/Materials | Identified exit to Garrison 6941 | -8/Materials | Entered Garrison 6941 | -8/Garrison | Accompanied by 1 ally 6972 | -8/Garrison | Discovered new exit (range 50) 6972 | -8/Garrison | Discovered new exit (range 73) 6972 | -8/Garrison | Discovered new exit (range 32) 7061 | -8/Garrison | Garrison Relay disabled 7208 | -8/Garrison | Spotted B-75 Beast 7254 | -8/Garrison | Triggered checkpoint 7324 | -8/Garrison | Destroyed 8 combat bots 7424 | -8/Garrison | Identified exit to Materials 7437 | -8/Garrison | Entered Materials 7516 | -8/Materials | Garrison activated, responded to threat 7843 | -8/Materials | Met 7R-MNS 8090 | -8/Materials | Discovered new exit (range 5) 9314 | -8/Materials | Repaired Imp. Assault Rifle 9366 | -8/Materials | Repaired Imp. Assault Rifle 9457 | -8/Materials | Discovered new exit (range 7) 9537 | -8/Materials | Repaired Hrd. Heavy Armor Plating 9582 | -8/Materials | Repaired Arm. Huge Wheel 9628 | -8/Materials | Repaired Hrd. Heavy Armor Plating 9729 | -8/Materials | Entered Factory 9729 | -7/Factory | Evolved 2 slots: Utility x1, Weapon x1 9730 | -7/Factory | Caught up to 7R-MNS 9807 | -7/Factory | Discovered new exit (range 9) 10037 | -7/Factory | Identified exit to Storage 10037 | -7/Factory | Identified exit to Lower Caves 10195 | -7/Factory | Discovered new exit (range 16) 10310 | -7/Factory | Garrison activated, responded to threat 10670 | -7/Factory | Cargo convoy interrupted 10977 | -7/Factory | Build established: Pyromaniac-Tank 11243 | -7/Factory | Entered Lower Caves 11244 | -7/Lower Caves | Identified exit to Lower Caves 11489 | -7/Lower Caves | Attracted the attention of an 0b10 checkpoint 11528 | -7/Lower Caves | Build established: Pyromaniac-Gunner 11724 | -7/Lower Caves | Attracted the attention of an 0b10 outpost 11788 | -7/Lower Caves | Destroyed 9 combat bots 11945 | -7/Lower Caves | Entered another Lower Caves area 11945 | -7/Lower Caves | Accompanied by 1 ally 12044 | -7/Lower Caves | Ambushed by wild Derelicts 12621 | -7/Lower Caves | Learned location of 1 exit from Proximity Caves 12802 | -7/Lower Caves | Discovered new exit (range 4) 12814 | -7/Lower Caves | Entered Data Miner 12814 | -7/Data Miner | Accompanied by 1 ally 12814 | -7/Data Miner | Discovered new exit (range 7) 12848 | -7/Data Miner | Met Data Miner 12879 | -7/Data Miner | Learned location of Section 7 (-2) 12879 | -7/Data Miner | Acquired the access code to Warlord's prototype stash 12904 | -7/Data Miner | Received God Mode back door access code from Data Miner 12945 | -7/Data Miner | Entered Proximity Caves 12945 | -6/Proximity Caves | Accompanied by 1 ally 12946 | -6/Proximity Caves | Identified exit to Factory 13097 | -6/Proximity Caves | Attracted the attention of an 0b10 checkpoint 13375 | -6/Proximity Caves | Attracted the attention of an 0b10 outpost 13395 | -6/Proximity Caves | Escorted by Enhanced Grunt 13416 | -6/Proximity Caves | Destroyed 9 combat bots 13455 | -6/Proximity Caves | Core integrity fell below 50% 13489 | -6/Proximity Caves | Found Prototype Device 13490 | -6/Proximity Caves | Identified Exp. Thermal Shield 13627 | -6/Proximity Caves | Build established: Trapper-Gunner 13696 | -6/Proximity Caves | Entered Factory 13696 | -6/Factory | Accompanied by 1 ally 13696 | -6/Factory | Evolved 2 slots: Power x1, Utility x1 14015 | -6/Factory | Build established: Trapper-Skirmisher 14211 | -6/Factory | Identified exit to Lower Caves 14462 | -6/Factory | Fabricated Combat Drone Bay (x1) 14466 | -6/Factory | Build established: Skirmisher 14731 | -6/Factory | Discovered new exit (range 15) 15533 | -6/Factory | Fabricated Combat Drone Bay (x1) 16152 | -6/Factory | Fabricated Combat Drone Bay? 16346 | -6/Factory | Discovered new exit (range 16) 16357 | -6/Factory | Fabricated Combat Drone Bay? 17217 | -6/Factory | Build established: Hauler-Skirmisher 17546 | -6/Factory | First assault squad dispatched 18060 | -6/Factory | Entered Lower Caves 18060 | -6/Lower Caves | Accompanied by 4 allies 18363 | -6/Lower Caves | Build established: Hauler-Tank 18432 | -6/Lower Caves | Learned location of 1 exit from Factory 18447 | -6/Lower Caves | Spotted B-75 Beast 18472 | -6/Lower Caves | Allies destroyed B-75 Beast 18708 | -6/Lower Caves | Learned 4 Factory zone layouts 19999 | -6/Lower Caves | Discovered new exit (range 6) 20212 | -6/Lower Caves | Entered another Lower Caves area 20212 | -6/Lower Caves | Accompanied by 7 allies 20270 | -6/Lower Caves | Learned Factory terminal intel 20289 | -6/Lower Caves | Learned Factory interactive machine intel 20518 | -6/Lower Caves | Discovered new exit (range 10) 21134 | -6/Lower Caves | Encountered a Warlord checkpoint 21689 | -6/Lower Caves | Discovered new exit (range 19) 22158 | -6/Lower Caves | Entered Zion 22158 | -6/Zion | Accompanied by 6 allies 22309 | -6/Zion | Discovered new exit (range 11) 22615 | -6/Zion | Learned location of Quarantine (-2) 22649 | -6/Zion | Found Prototype Special Weapon 22649 | -6/Zion | Identified RU-N14's Throwing Claymores 22709 | -6/Zion | Learned Factory garrison access intel 23428 | -6/Zion | Given the Hacking Drone Bay 23433 | -6/Zion | Found Prototype Device 23906 | -6/Zion | Entered Proximity Caves 23906 | -5/Proximity Caves | Accompanied by 6 allies 23940 | -5/Proximity Caves | Unaware initiated a cargo recovery operation 24039 | -5/Proximity Caves | Attracted the attention of an 0b10 checkpoint 24170 | -5/Proximity Caves | Learned location of 1 exit from Factory 25042 | -5/Proximity Caves | Spotted B-75 Beast 25058 | -5/Proximity Caves | Destroyed B-75 Beast 25422 | -5/Proximity Caves | Lost 4 allies 25437 | -5/Proximity Caves | Discovered new exit (range 10) 25659 | -5/Proximity Caves | Found Scatter Rocket Array 25818 | -5/Proximity Caves | Entered Factory 25818 | -5/Factory | Accompanied by 2 allies 25818 | -5/Factory | Evolved 2 slots: Utility x2 25819 | -5/Factory | Identified exit to Factory 25821 | -5/Factory | Loaded intel: 52 interactive machine locations 25822 | -5/Factory | Loaded intel: 26 terminal locations 25823 | -5/Factory | Loaded intel: 4 garrison access locations 26137 | -5/Factory | Garrison activated, responded to threat 26727 | -5/Factory | Discovered new exit (range 12) 26805 | -5/Factory | Garrison activated, responded to threat 27131 | -5/Factory | Fabricated Combat Drone Bay? 27266 | -5/Factory | Identified exit to Upper Caves 27283 | -5/Factory | Build established: Hauler-Skirmisher 27318 | -5/Factory | First assault squad dispatched 27406 | -5/Factory | Destroyed 8 combat bots 27415 | -5/Factory | Discovered exit to Factory (range 8) 27459 | -5/Factory | Fabricated Combat Drone Bay? 27526 | -5/Factory | Fabricated Combat Drone Bay (x1) 27956 | -5/Factory | Build established: Hauler-Tank 28042 | -5/Factory | Repaired Broken Adv. Cooling System 28049 | -5/Factory | Garrison activated, responded to threat 28125 | -5/Factory | Entered Upper Caves 28224 | -5/Upper Caves | Learned Factory trap positions 28657 | -5/Upper Caves | Learned Factory garrison access intel 28657 | -5/Upper Caves | Learned Research terminal intel 28657 | -5/Upper Caves | Learned Armory security intel 28657 | -5/Upper Caves | Learned Research emergency access door positions 28657 | -5/Upper Caves | Learned Factory trap positions 28657 | -5/Upper Caves | Learned location of Extension (-4) 29003 | -5/Upper Caves | Discovered new exit (range 9) 29199 | -5/Upper Caves | Spotted B-75 Beast 29211 | -5/Upper Caves | Allies destroyed B-75 Beast 29475 | -5/Upper Caves | Entered another Upper Caves area 29475 | -5/Upper Caves | Accompanied by 6 allies 29567 | -5/Upper Caves | Encountered a Warlord checkpoint 29862 | -5/Upper Caves | Attracted the attention of an 0b10 checkpoint 30363 | -5/Upper Caves | Learned Factory non-interactive machine intel 30547 | -5/Upper Caves | Discovered new exit (range 8) 30817 | -5/Upper Caves | Entered Zhirov 30817 | -5/Zhirov | Accompanied by 5 allies 30818 | -5/Zhirov | Discovered new exit (range 4) 30879 | -5/Zhirov | Met Zhirov 30921 | -5/Zhirov | Learned location of Testing (-3) 30947 | -5/Zhirov | Zhirov requested help retrieving the SGEMP Prototype 30976 | -5/Zhirov | Found Alien Artifact 30976 | -5/Zhirov | Identified Integrated Reactor 30976 | -5/Zhirov | Installed Integrated Reactor, increased core energy generation (+10) 31000 | -5/Zhirov | Found Alien Artifact 31117 | -5/Zhirov | Build established: Hauler-Mutant 31172 | -5/Zhirov | Entered Proximity Caves 31172 | -4/Proximity Caves | Accompanied by 2 allies 31231 | -4/Proximity Caves | Spotted B-86 Titan 31437 | -4/Proximity Caves | Build established: Hauler-Tank 31890 | -4/Proximity Caves | Entered Factory 31890 | -4/Factory | Evolved 2 slots: Propulsion x2 31891 | -4/Factory | Identified exit to Extension 31892 | -4/Factory | Loaded intel: 97 trap records 31893 | -4/Factory | Loaded intel: 198 non-interactive machine locations 31894 | -4/Factory | Loaded intel: 3 garrison access locations 31954 | -4/Factory | Discovered new exit (range 14) 32102 | -4/Factory | Discovered new exit (range 8) 32165 | -4/Factory | Identified exit to Research 32186 | -4/Factory | Build established: Hauler-Skirmisher 32845 | -4/Factory | Repaired Arm. Huge Wheel 32864 | -4/Factory | Crushed by falling debris 32864 | -4/Factory | System corruption reached 10% 33890 | -4/Factory | First assault squad dispatched 33940 | -4/Factory | Garrison activated, responded to threat 33957 | -4/Factory | Build established: Hauler-Tank 34363 | -4/Factory | Entered Upper Caves 34363 | -4/Upper Caves | Accompanied by 2 allies 34385 | -4/Upper Caves | Spotted B-86 Titan 34397 | -4/Upper Caves | Destroyed B-86 Titan 34627 | -4/Upper Caves | Attracted the attention of an 0b10 outpost 34991 | -4/Upper Caves | Learned 4 Research zone layouts 35272 | -4/Upper Caves | Found Alien Artifact 35398 | -4/Upper Caves | Discovered new exit (range 7) 35508 | -4/Upper Caves | Learned location of Armory (-3) 35700 | -4/Upper Caves | Entered another Upper Caves area 35702 | -4/Upper Caves | Attracted the attention of an 0b10 outpost 35731 | -4/Upper Caves | Destroyed 9 combat bots 35786 | -4/Upper Caves | Lost 8 parts (2p1n3u2w) 35988 | -4/Upper Caves | Discovered exit to Research (range 15) 36110 | -4/Upper Caves | Build established: Hauler-Skirmisher 36467 | -4/Upper Caves | System corruption reached 30% 36729 | -4/Upper Caves | Spotted B-86 Titan 36822 | -4/Upper Caves | Build established: Hauler-Tank 36951 | -4/Upper Caves | Learned Research stockpile data 38121 | -4/Upper Caves | Crushed by falling debris 38363 | -4/Upper Caves | Discovered new exit (range 5) 38388 | -4/Upper Caves | Build established: Hauler-Mutant 38753 | -4/Upper Caves | Entered Warlord 39611 | -4/Warlord | System corruption cleaned by Quarantine Array 40053 | -4/Warlord | Warlord's base attacked by MAIN.C 40266 | -4/Warlord | Lost 3 allies 40403 | -4/Warlord | Warlord forces counterattacked 40728 | -4/Warlord | Warlord base infiltrated, sounded retreat 41112 | -4/Warlord | Spotted Striker 41131 | -4/Warlord | Released all parts (11) 41132 | -4/Warlord | Core integrity fell below 50% 41158 | -4/Warlord | Discovered new exit (range 11) 41162 | -4/Warlord | Entered Proximity Caves 41183 | -3/Proximity Caves | Identified Transdimensional Reconstructor 41183 | -3/Proximity Caves | Warped through subspace 41302 | -3/Proximity Caves | Core integrity fell below 20% 41305 | -3/Proximity Caves | Spotter reported a threat 41310 | -3/Proximity Caves | Destroyed by S-43 Plague with Heavy Machine Gun Last Messages --------------- 41140_ Extracted 1 energy. 41141_ Extracted 295 matter. 41142_ Acquired Adv. Sensor Array. 41143_ ANNOUNCEMENT: MAIN.C reinforcements approaching through caves, arriving soon. 41145_ Acquired Prototype Device. 41147_ Acquired Exp. Utility Shielding. 41153_ ANNOUNCEMENT: Detected 1 Grunt squad, 1 Swarmer squad, 1 Saboteur squad, 1 Hunter squad, with prototype support. 41158_ EXIT=FOUND LOCATION=UNKNOWN GOAL=ESCAPE 41183_ Identified Transdimensional Reconstructor. 41183_ Warped through subspace. 41296_ Scatter Rocket Array destroyed. 41302_ Slammed into S-43 Plague. 41303_ Slammed into N-01 Spotter. 41304_ N-01 Spotter is scanning... 41305_ N-01 Spotter sends a signal. 41305_ ALERT: Unidentified potential threat approaching Complex 0b10. Map ----- +----------------------------------------------------+ | ?????????????????????????????????????????????????? | | ?????????????????????????????????????????????????? | | ?????????????????????????????????????????????????? | | ?????????????????????????????????????????????????? | | ?????????????????????????????????????????????????? | | ?????????????????????????????????????????????????? | | ?????????????????????????????????????????????????? | | ?????????????????????????????????????????????????? | | ?????????????????????????????????????????????????? | | ?????????????????????????????????????????????????? | | ?????????????????????????????????????????????????? | | ?????????????????????????##??????????????????????? | | ??????????????????# ????? ??????????????????????? | | ????????????????### ???? #?????????????????????? | | ?????????????? #### #?????????????????????? | | ?????????????? ##????????????????????? | | ????????????? ????????????????????? | | ?????????????? ????????????????????? | | ???????????????# #????????????????????? | | #???????????????# #????????????????????? | | ###???????????### ?????????????????????? | | ###????????## ?????????????????????? | | #????????# ?????????????????????? | | ##??????????? ??????????????????????? | | ####???????????????# #??????????????????????? | | ###?????????????????# @##?????????????????????? | | #???? ???????????## #####?????????????????? | | #???? ??#???????## ###???????????????? | | #????? ## ??????# n ##??????????????? | | ####??? ??????# ##?????????????? | | #????? ????## #?????????????? | | #??????# ???# ## #????????????? | | ######## #?## ##?? #????????????? | | ## ## ##???? ##????????????? | | ##### #?# ##?????#?????????????? | | #???# #?# s ## #???????????????? | | ## ##???# #?# ## ss #????????????????? | | ########## #######s #????????????????? | | # s #??????????????? | | ## #??????????????? | | # #### ####### ## ####??????????????? | | #### ##????# #?### #?????????????????? | | ##### #???? #?????????????????? | | #### #?????#?????????????????? | | #??## ???????????????????? | | ##???### ### ???????????????????? | | #??????# #?# ### #### ???????????????????? | | ##?????# #??#???###???? ??????????????????? | | ##??????## ##?????????????????????????????????? | | ##????????#####??????????????????????????????????? | +----------------------------------------------------+ Best States ------------- Heat Dissipation 99 Coolant Potential 100 Energy Generation 45 Energy Capacity 505 Matter Stores 452 Matter Capacity 600 Sight Range 22 Robot Scan Range 16 Terrain Scan Density 10 Jamming Range 14 Armor Coverage 600 Resistance: KI 20 Resistance: TH 30 Utility Shielding 90 Evasion (%) 50 Targeting Accuracy 8 Recoil Reduction 4 Energy Filtering 30 Offensive Hacking 10 Defensive Hacking 14 Trap Extractor Capacity 6 Item Schematics ----------------- Cargo Storage Unit | -9/Materials | Scanalyzed Hvy. Armor Plating | -9/Materials | Scanalyzed Arm. Huge Wheel | -8/Materials | Scanalyzed Hrd. Heavy Armor Plating | -8/Materials | Scanalyzed Combat Drone Bay | -7/Data Miner | Free Lgt. Regenerative Plating | -7/Data Miner | Free Cld. Cesium-ion Thruster | -7/Data Miner | Free Gravity Neutralizer | -7/Data Miner | Free Gui. EMP Blaster | -7/Data Miner | Free Gyrokinetic Inverter | -7/Data Miner | Free Imp. Component Analysis Suite | -7/Data Miner | Free Imp. Plasma Cutter | -7/Data Miner | Free Adv. Cooling System | -7/Data Miner | Free Imp. Thermal Shield | -7/Data Miner | Free Force Lance | -7/Data Miner | Free Imp. Force Field | -7/Data Miner | Free Adv. Melee Analysis Suite | -6/Zion | Archive Plasma Rifle | -6/Zion | Archive Adv. Terrain Scanner | -6/Zion | Archive KE Penetrator | -6/Zion | Archive 0b10 Decoder Chip [Skirmisher] | -6/Zion | Archive Adv. Reaction Control System | -6/Zion | Archive Imp. Recalibrator | -6/Zion | Archive Enh. Optical Array | -6/Zion | Archive 0b10 Decoder Chip [Looter] | -6/Zion | Archive Myomer Leg | -6/Zion | Archive Imp. Arc Projector | -6/Zion | Archive Nuclear Pulse Thruster | -6/Zion | Archive Lrn. Proton Cannon | -6/Zion | Archive Assault Drone Bay | -5/Zhirov | Free Exp. Heat Sink | -5/Zhirov | Free Exp. Optical Array | -5/Zhirov | Free Imp. Arc Thrower | -5/Zhirov | Free Robot Schematics ------------------ G-50 Soldier | -7/Data Miner | Free H-55 Commando | -7/Data Miner | Free G-47 Trooper | -7/Data Miner | Free X-62 Marksman | -7/Data Miner | Free C-35 Carver | -7/Data Miner | Free A-15 Conveyor | -7/Data Miner | Free S-27 Virus | -6/Zion | Archive A-02 Transporter | -6/Zion | Archive X-82 Rainmaker | -6/Zion | Archive Fabricated ------------ Combat Drone Bay | x1 | -6/Factory Combat Drone Bay | x1 | -6/Factory Combat Drone Bay | x1 | -6/Factory Combat Drone Bay | x1 | -6/Factory Combat Drone Bay | x1 | -5/Factory Combat Drone Bay | x1 | -5/Factory Combat Drone Bay | x1 | -5/Factory Alien Tech Used ----------------- Integrated Reactor Transdimensional Reconstructor Achievements -------------- None Challenges ------------ None Game ------ Seed FactoryVortexMace Manual? 0 Play Time 03:33:09 Cumulative 308.1 hours Start 2024.04.04 @ 10:43:04 End 2024.04.04 @ 19:37:12 Sessions 7 Manual Loads 0 Difficulty Rogue Special Mode None Game No. 210 Rogue 210 Adventurer 0 Explorer 0 Win Type - Total 14 Types 9/1/1/1/1/0/0/1/0 Lore% 73 Gallery% 83 Achievement% 72 Wizard Run 0 Options --------- Layout 0 ASCII 0 Keyboard 1 Movement Numpad Keybinds 0 Fullscreen 2 Font 18/SmallcapsGlow Map View 76x50 Zoom Use 0% Tactical HUD 1 Map Filters NONE Filters NONE Steam 1 RUN: eb73d513-b83a-4b10-8e0e-e833dc3e8061